{"text_format":"1","workbook":"xlsx","n_sheets":3,"sheets":["Лист1","Лист2","Лист3"],"not_rendered":{"charts":0,"images":0,"macros":1,"external_links":0,"defined_names":2,"comments":0,"pivot_tables":0},"unopened":[],"bounds":{"document_bytes":16777216,"sheet_cells":100000,"rows_first":2000,"rows_last":500,"rows_between":2000,"halvings":0,"cell_chars":16384,"cell_head_chars":4096},"cells_cut":0,"cells_raw":0,"read":"whole","date_system":"1900"}

{"sheet":"Лист1","index":0,"n_rows":20,"n_cols":16,"rows_kept":20,"cut":false,"hidden":false,"merged":[]}
[null,null,null,null,null,null,null,null,null,null,null,null,null,"Для фильтра","Для фильтра2"]
["q","w","e","r","t","y","q","w","e",null,null,null,null,"Киев","Киев","Именованный диапазон смотрите, нажав Контрл F3"]
[null,null,null,null,null,"Киев",{"$f":"--ISNUMBER(MATCH(\"*\"&F3&\"*\",Для_фильтра,))","v":1},{"$f":"--ISNUMBER(MATCH(\"*\"&F3&\"*\",{\"Киев\";\"Харьков\";\"Одесса\";\"Днепропетровск\"},))","v":1},null,null,null,null,null,"Харьков"]
[null,null,null,null,null,"Одесса",{"$f":"--ISNUMBER(MATCH(\"*\"&F4&\"*\",Для_фильтра,))","v":1},{"$f":"--ISNUMBER(MATCH(\"*\"&F4&\"*\",{\"Киев\";\"Харьков\";\"Одесса\";\"Днепропетровск\"},))","v":1},null,null,null,null,null,"Одесса"]
[null,null,null,null,null,"Харьков",{"$f":"--ISNUMBER(MATCH(\"*\"&F5&\"*\",Для_фильтра,))","v":1},{"$f":"--ISNUMBER(MATCH(\"*\"&F5&\"*\",{\"Киев\";\"Харьков\";\"Одесса\";\"Днепропетровск\"},))","v":1},null,null,null,null,null,"Днепропетровск"]
[null,null,null,null,null,"Днепропетровск",{"$f":"--ISNUMBER(MATCH(\"*\"&F6&\"*\",Для_фильтра,))","v":1},{"$f":"--ISNUMBER(MATCH(\"*\"&F6&\"*\",{\"Киев\";\"Харьков\";\"Одесса\";\"Днепропетровск\"},))","v":1}]
[null,null,null,null,null,"Харьков",{"$f":"--ISNUMBER(MATCH(\"*\"&F7&\"*\",Для_фильтра,))","v":1},{"$f":"--ISNUMBER(MATCH(\"*\"&F7&\"*\",{\"Киев\";\"Харьков\";\"Одесса\";\"Днепропетровск\"},))","v":1}]
[null,null,null,null,null,"Днепропетровск",{"$f":"--ISNUMBER(MATCH(\"*\"&F8&\"*\",Для_фильтра,))","v":1},{"$f":"--ISNUMBER(MATCH(\"*\"&F8&\"*\",{\"Киев\";\"Харьков\";\"Одесса\";\"Днепропетровск\"},))","v":1}]
[null,null,null,null,null,"Одесса",{"$f":"--ISNUMBER(MATCH(\"*\"&F9&\"*\",Для_фильтра,))","v":1},{"$f":"--ISNUMBER(MATCH(\"*\"&F9&\"*\",{\"Киев\";\"Харьков\";\"Одесса\";\"Днепропетровск\"},))","v":1}]
[null,null,null,null,null,"Херсон",{"$f":"--ISNUMBER(MATCH(\"*\"&F10&\"*\",Для_фильтра,))","v":0},{"$f":"--ISNUMBER(MATCH(\"*\"&F10&\"*\",{\"Киев\";\"Харьков\";\"Одесса\";\"Днепропетровск\"},))","v":0}]
[null,null,null,null,null,"Харьков",{"$f":"--ISNUMBER(MATCH(\"*\"&F11&\"*\",Для_фильтра,))","v":1},{"$f":"--ISNUMBER(MATCH(\"*\"&F11&\"*\",{\"Киев\";\"Харьков\";\"Одесса\";\"Днепропетровск\"},))","v":1}]
[null,null,null,null,null,"Киев",{"$f":"--ISNUMBER(MATCH(\"*\"&F12&\"*\",Для_фильтра,))","v":1},{"$f":"--ISNUMBER(MATCH(\"*\"&F12&\"*\",{\"Киев\";\"Харьков\";\"Одесса\";\"Днепропетровск\"},))","v":1}]
[null,null,null,null,null,"Одесса",{"$f":"--ISNUMBER(MATCH(\"*\"&F13&\"*\",Для_фильтра,))","v":1},{"$f":"--ISNUMBER(MATCH(\"*\"&F13&\"*\",{\"Киев\";\"Харьков\";\"Одесса\";\"Днепропетровск\"},))","v":1}]
[null,null,null,null,null,"Харьков",{"$f":"--ISNUMBER(MATCH(\"*\"&F14&\"*\",Для_фильтра,))","v":1},{"$f":"--ISNUMBER(MATCH(\"*\"&F14&\"*\",{\"Киев\";\"Харьков\";\"Одесса\";\"Днепропетровск\"},))","v":1}]
[null,null,null,null,null,"Днепропетровск",{"$f":"--ISNUMBER(MATCH(\"*\"&F15&\"*\",Для_фильтра,))","v":1},{"$f":"--ISNUMBER(MATCH(\"*\"&F15&\"*\",{\"Киев\";\"Харьков\";\"Одесса\";\"Днепропетровск\"},))","v":1}]
[null,null,null,null,null,"Харьков",{"$f":"--ISNUMBER(MATCH(\"*\"&F16&\"*\",Для_фильтра,))","v":1},{"$f":"--ISNUMBER(MATCH(\"*\"&F16&\"*\",{\"Киев\";\"Харьков\";\"Одесса\";\"Днепропетровск\"},))","v":1}]
[null,null,null,null,null,"Днепропетровск",{"$f":"--ISNUMBER(MATCH(\"*\"&F17&\"*\",Для_фильтра,))","v":1},{"$f":"--ISNUMBER(MATCH(\"*\"&F17&\"*\",{\"Киев\";\"Харьков\";\"Одесса\";\"Днепропетровск\"},))","v":1}]
[null,null,null,null,null,"Одесса",{"$f":"--ISNUMBER(MATCH(\"*\"&F18&\"*\",Для_фильтра,))","v":1},{"$f":"--ISNUMBER(MATCH(\"*\"&F18&\"*\",{\"Киев\";\"Харьков\";\"Одесса\";\"Днепропетровск\"},))","v":1}]
[null,null,null,null,null,"Харьков",{"$f":"--ISNUMBER(MATCH(\"*\"&F19&\"*\",Для_фильтра,))","v":1},{"$f":"--ISNUMBER(MATCH(\"*\"&F19&\"*\",{\"Киев\";\"Харьков\";\"Одесса\";\"Днепропетровск\"},))","v":1}]
[null,null,null,null,null,"Николаев",{"$f":"--ISNUMBER(MATCH(\"*\"&F20&\"*\",Для_фильтра,))","v":0},{"$f":"--ISNUMBER(MATCH(\"*\"&F20&\"*\",{\"Киев\";\"Харьков\";\"Одесса\";\"Днепропетровск\"},))","v":0}]

{"sheet":"Лист2","index":1,"n_rows":0,"n_cols":0,"rows_kept":0,"cut":false,"hidden":false,"merged":[]}

{"sheet":"Лист3","index":2,"n_rows":0,"n_cols":0,"rows_kept":0,"cut":false,"hidden":false,"merged":[]}